bitfinex-derivatives/quotes_SOLF0:USTF0_20251122
["timestamp","ask_amount","ask_price","bid_price","bid_amount"]
[1763804010616,5.94617184,126.57,126.55,3.24823052]
[1763804010914,14.27803694,126.6,126.55,3.24823052]
[1763804011116,14.27803694,126.6,126.49,3.19]
[1763804011117,116.58311274,126.57,126.49,3.19]
[1763804011319,123.81490878,126.56,126.45,3.19]
[1763804011511,13.10950878,126.55,126.47,3.19]
[1763804011703,5.94617184,126.54,126.47,3.19]
[1763804011908,5.94617184,126.53,126.47,3.19]
[1763804012104,117.86873694,126.56,126.48,3.19]
[1763804012311,7.21483009,126.53,126.51,0.05555132]
[1763804012515,5.95093371,126.52,126.46,16.64]
[1763804012813,11.83594645,126.51,126.46,16.64]
[1763804013119,5.95093371,126.5,126.46,16.64]
[1763804013311,5.95093371,126.49,126.46,16.64]
[1763804013523,5.95093371,126.48,126.42,3.19]
[1763804013717,123.79704968,126.51,126.46,0.05684207]
[1763804013914,6.01258897,126.5,126.46,0.05684207]
[1763804014219,5.95456815,126.49,126.46,3.24684207]
[1763804014415,0.05802082,126.5,126.46,3.24684207]
[1763804016716,0.05802082,126.5,126.46,3.23684207]
[1763804020914,0.05802082,126.5,126.46,10.35884207]
[1763804021116,0.05802082,126.5,126.47,3.18]
[1763804024528,0.05802082,126.5,126.46,0.05684207]
[1763804024824,0.05802082,126.5,126.46,3.23684207]
[1763804025022,0.05802082,126.5,126.46,0.05684207]
[1763804025228,0.05802082,126.5,126.46,3.23684207]
[1763804025730,7.1207,126.49,126.46,3.23684207]
[1763804028125,7.1215,126.48,126.46,0.05684207]
[1763804028328,110.7852,126.47,126.39,3.18]
[1763804028818,7.1234,126.44,126.39,3.18]
[1763804029426,0.05352667,126.43,126.41,3.18]
[1763804030232,110.7588,126.5,126.41,3.18]
[1763804030438,110.765,126.49,126.41,3.18]
[1763804031434,0.05250087,126.46,126.44,0.06080356]
[1763804032430,0.05250087,126.46,126.44,3.24080356]
[1763804034023,127.3956,126.53,126.45,3.18]
[1763804034837,7.1204,126.5,126.45,3.18]
[1763804035035,0.05303314,126.49,126.46,3.24074115]
[1763804035225,7.17363314,126.49,126.46,0.06074115]
[1763804039434,0.05303314,126.49,126.46,3.24074115]
[1763804040636,0.05303314,126.49,126.46,0.06074115]
[1763804041335,0.05303314,126.49,126.46,3.24074115]
[1763804041637,7.17353314,126.49,126.46,3.24074115]
[1763804041839,7.17353314,126.49,126.46,0.06074115]
[1763804042026,7.17353314,126.49,126.46,3.24074115]
[1763804042737,0.05303314,126.49,126.46,3.24074115]
[1763804044231,0.05303314,126.49,126.47,3.18]
[1763804045236,0.05303314,126.49,126.46,7.18284115]
[1763804045237,119.88932903,126.58,126.48,3.18]
[1763804045431,110.692,126.58,126.48,3.18]
[1763804045833,7.1172,126.55,126.48,10.3009]
[1763804046037,7.1172,126.55,126.49,3.13]
[1763804046237,0.02125052,126.53,126.51,3.18380071]
[1763804047045,110.6702,126.6,126.51,3.18380071]
[1763804047340,127.2965,126.62,126.52,3.13]
[1763804047738,7.115,126.59,126.53,3.13]
[1763804047945,110.6616,126.61,126.53,3.13]
[1763804048145,110.6616,126.61,126.55,0.0540267]
[1763804048544,110.6616,126.61,126.55,3.1840267]
[1763804049640,7.1153,126.59,126.55,3.1840267]
[1763804050147,110.6788,126.59,126.55,0.0540267]
[1763804051555,7.1163,126.57,126.55,0.0540267]
[1763804053647,7.1152,126.59,126.55,3.1840267]
[1763804054852,7.1156,126.58,126.55,3.1840267]
[1763804055148,110.6778,126.59,126.55,0.0540267]
[1763804055548,7.1162,126.57,126.55,0.0540267]
[1763804056756,7.1153,126.59,126.55,3.1840267]
[1763804057551,7.1141,126.61,126.55,3.1840267]
[1763804060854,7.1117,126.65,126.57,3.13]
[1763804061053,7.1117,126.65,126.6,3.18494103]
[1763804061263,110.6502,126.62,126.54,3.13]
[1763804062160,7.1145,126.6,126.54,3.13]
[1763804062358,0.05494103,126.58,126.56,0.05909035]
[1763804063666,7.17054103,126.58,126.56,0.05909035]
[1763804064956,110.6943,126.57,126.5,3.13]
[1763804065160,110.6943,126.57,126.47,3.13]
[1763804066361,0.05448904,126.53,126.51,0.05362171]
[1763804066562,0.05448904,126.53,126.51,3.18362171]
[1763804068366,0.05448904,126.53,126.52,3.13]
[1763804070870,0.05448904,126.53,126.51,0.05362171]
[1763804071178,0.05448904,126.53,126.51,3.18362171]
[1763804073475,0.05448904,126.53,126.51,0.05362171]
[1763804074380,0.05448904,126.53,126.51,3.18362171]
[1763804078776,5.86181532,126.61,126.51,3.18362171]
[1763804079075,116.52401532,126.61,126.51,3.13]
[1763804079278,5.98081083,126.6,126.51,3.13]
[1763804079476,7.1155,126.58,126.52,3.32]
[1763804079873,0.05535411,126.56,126.54,3.37691208]
[1763804083287,2.11034075,126.61,126.56,3.32]
[1763804084387,2.11034075,126.61,126.57,0.05268877]
[1763804084583,7.1144,126.6,126.57,0.05268877]
[1763804084977,2.11034075,126.59,126.57,0.05268877]
[1763804085481,9.22534075,126.59,126.57,0.05268877]
[1763804086586,116.6907624,126.58,126.5,19.96]
[1763804086891,2.11034075,126.57,126.51,3.32]
[1763804087491,2.16721775,126.55,126.53,0.05261154]
[1763804088683,9.28451775,126.55,126.53,0.05261154]
[1763804089493,6.01744073,126.54,126.53,0.05261154]
[1763804092194,6.01744073,126.54,126.5,16.64]
[1763804092496,2.11034075,126.52,126.46,3.32]
[1763804093493,2.16958969,126.5,126.48,0.05889168]
[1763804093692,0.05924894,126.5,126.48,3.37889168]
[1763804095292,7.1179,126.54,126.48,3.37889168]
[1763804095590,2.11034075,126.55,126.49,3.32]
[1763804096088,7.1178,126.54,126.49,3.32]
[1763804096289,0.0502396,126.53,126.51,3.3704728]
[1763804100394,16.64,126.6,126.51,3.3704728]
[1763804100695,7.1141,126.61,126.52,3.32]
[1763804100890,6.00977389,126.6,126.52,3.32]
[1763804101091,7.1144,126.6,126.53,7.1181]
[1763804101297,7.1144,126.6,126.55,3.37596556]
[1763804102994,7.115,126.59,126.55,3.37596556]
[1763804104002,7.1141,126.61,126.55,3.37596556]
[1763804104799,6.01099917,126.6,126.55,3.37596556]
[1763804105003,7.1129,126.63,126.57,3.32]
[1763804105200,6.01019813,126.62,126.59,3.37593841]
[1763804105504,7.32808341,126.65,126.59,3.37593841]
[1763804105804,13.12179105,126.64,126.59,3.37593841]
[1763804106001,6.00959105,126.63,126.59,3.37593841]
[1763804106198,6.00959105,126.62,126.59,3.37593841]
[1763804106404,7.1122,126.64,126.59,3.37593841]
[1763804106603,6.00824755,126.63,126.59,3.37593841]
[1763804106813,7.32808341,126.67,126.6,3.31038641]
[1763804107104,6.0074458,126.66,126.6,3.31038641]
[1763804107408,6.0074458,126.65,126.62,0.05233292]
[1763804107705,7.1116,126.65,126.62,0.05233292]
[1763804107905,7.32808341,126.69,126.62,3.30233292]
[1763804108098,6.00329989,126.68,126.63,3.25]
[1763804108295,7.1079,126.72,126.63,3.25]
[1763804108501,7.1079,126.72,126.65,3.25]
[1763804108704,7.1079,126.72,126.67,0.05930835]
[1763804108899,7.1079,126.72,126.68,3.25]
[1763804109097,7.32808341,126.75,126.68,19.89]
[1763804109301,110.5225,126.77,126.7,3.30624693]
[1763804109602,116.50984746,126.76,126.7,3.30624693]
[1763804109909,116.51954746,126.75,126.7,0.05624693]
[1763804110111,110.538,126.75,126.7,0.05624693]
[1763804110303,110.5283,126.76,126.7,3.30624693]
[1763804110503,110.5225,126.77,126.7,3.30624693]
[1763804110908,117.83518341,126.79,126.7,3.30624693]
[1763804111214,5.97158425,126.78,126.73,3.30840534]
[1763804111412,12.96807059,126.8,126.73,3.30840534]
[1763804111710,116.33527059,126.83,126.74,3.25]
[1763804111910,110.4704,126.83,126.77,0.05128199]
[1763804112310,110.4937,126.8,126.77,0.05128199]
[1763804112510,110.4937,126.8,126.72,3.25]
[1763804112714,116.34987059,126.81,126.72,3.25]
[1763804113012,110.4783,126.82,126.72,3.25]
[1763804113511,0.05128199,126.78,126.76,3.30927426]
[1763804116014,0.05128199,126.78,126.76,0.05927426]
[1763804116700,7.1053,126.76,126.7,3.25]
[1763804117099,110.5046,126.79,126.7,3.25]
[1763804117609,116.36187059,126.8,126.7,3.25]
[1763804117805,0.0500031,126.76,126.74,0.05983327]
[1763804118004,0.0500031,126.76,126.74,3.30983327]
[1763804118918,0.0500031,126.76,126.74,0.05983327]
[1763804119212,0.0500031,126.76,126.74,3.30983327]
[1763804121016,117.5906,126.81,126.74,3.30983327]
[1763804121207,7.1028,126.81,126.74,3.30983327]
[1763804121512,12.96657059,126.83,126.74,3.30983327]
[1763804121710,110.4534,126.85,126.74,3.25]
[1763804122016,110.4587,126.84,126.74,3.25]
[1763804122217,0.05241969,126.81,126.78,0.05799294]
[1763804123716,0.05241969,126.81,126.78,3.30799294]
[1763804125417,116.27097059,126.9,126.78,3.30799294]
[1763804125613,116.27097059,126.9,126.78,3.25]
[1763804126112,110.4067,126.9,126.81,3.25]
[1763804126316,116.26417059,126.91,126.84,0.05263863]
[1763804126614,7.097,126.91,126.84,3.30263863]
[1763804126823,5.86487059,126.94,126.84,3.30263863]
[1763804127009,5.86487059,126.94,126.88,0.05217146]
[1763804127416,110.3616,126.96,126.88,3.30217146]
[1763804127616,110.3616,126.96,126.91,0.06032229]
[1763804128118,110.3647,126.95,126.91,0.06032229]
[1763804128319,110.3727,126.94,126.91,0.06032229]
[1763804128618,116.23757059,126.94,126.91,0.06032229]
[1763804128818,116.23757059,126.94,126.85,13.47]
[1763804128819,110.3908,126.92,126.85,3.25]
[1763804129117,5.86487059,126.94,126.85,3.25]
[1763804129510,7.0961,126.93,126.85,3.25]
[1763804129707,5.86487059,126.94,126.85,3.25]
[1763804129911,0.05720515,126.9,126.89,3.25]
[1763804130115,0.05758355,126.91,126.89,3.25]
[1763804131016,5.86487059,126.97,126.89,3.25]
[1763804131415,7.0944,126.96,126.89,3.25]
[1763804131716,110.3018,127.02,126.92,3.25]
[1763804131919,7.0928,126.99,126.92,3.25]
[1763804132221,7.0928,126.99,126.94,0.05483896]
[1763804132516,110.3453,126.97,126.94,0.05483896]
[1763804132720,5.86487059,126.97,126.94,0.05483896]
[1763804133810,7.0944,126.96,126.94,0.05483896]
[1763804135215,110.3366,126.98,126.94,0.05483896]
[1763804135716,7.0938,126.97,126.94,0.05483896]
[1763804135919,110.3075,127.02,126.94,3.09483896]
[1763804136116,126.9517,127.04,126.97,0.05440376]
[1763804136316,5.86487059,127.03,126.97,0.05440376]
[1763804136506,5.86487059,127.03,126.97,3.09440376]
[1763804136715,0.21809,127.04,126.97,3.09440376]
[1763804137809,110.50499,127.04,126.97,3.09440376]
[1763804138116,110.2936,127.03,126.97,0.05440376]
[1763804138316,110.3034,127.02,126.97,0.05440376]
[1763804139026,7.0922,127.0,126.97,0.05440376]
[1763804139224,16.89809,127.04,126.97,3.10440376]
[1763804139524,7.0915,127.01,126.97,0.05440376]
[1763804139714,16.89809,127.04,126.97,3.10440376]
[1763804139914,0.21809,127.04,126.97,3.10440376]
[1763804140822,7.0905,127.03,126.97,3.10440376]
[1763804141128,0.21809,127.04,126.97,3.10440376]
[1763804142223,119.35761134,127.11,126.99,3.05]
[1763804142421,110.2408,127.09,127.04,0.05280917]
[1763804143217,110.2584,127.07,127.04,0.05280917]
[1763804143820,7.0888,127.06,127.04,0.05280917]
[1763804144617,117.338,127.08,127.04,0.05280917]
[1763804144825,110.2503,127.08,127.04,0.05280917]
[1763804145828,7.0887,127.06,127.04,0.05280917]
[1763804148526,117.3555,127.06,127.04,0.05280917]
[1763804148722,7.0887,127.06,127.04,0.05280917]
[1763804149423,7.0878,127.08,127.04,3.10280917]
[1763804149619,16.68,127.1,127.04,3.10280917]
[1763804150020,23.7666,127.1,127.04,3.10280917]
[1763804150232,9.12651134,127.11,127.04,3.10280917]
[1763804150527,23.7644,127.14,127.06,7.0883]
[1763804150730,23.7644,127.14,127.07,3.05]
[1763804151027,9.12651134,127.17,127.09,3.10595567]
[1763804151233,25.80651134,127.17,127.09,3.05]
[1763804151526,110.1609,127.19,127.12,3.1002428]
[1763804151726,119.27831134,127.2,127.12,3.1002428]
[1763804151927,7.0819,127.18,127.12,3.05]
[1763804152127,7.0819,127.18,127.15,0.05854605]
[1763804153220,7.0826,127.17,127.15,0.05854605]
[1763804154630,7.0813,127.19,127.15,3.10854605]
[1763804154827,110.1184,127.24,127.15,3.10854605]
[1763804155133,7.0809,127.2,127.15,3.10854605]
[1763804155933,7.0815,127.19,127.15,3.10854605]
[1763804156129,126.7984,127.24,127.15,3.10854605]
[1763804156533,7.0809,127.2,127.15,3.10854605]
[1763804156932,110.1548,127.19,127.15,0.05854605]
[1763804157123,7.0821,127.18,127.15,0.05854605]
[1763804157328,110.1416,127.21,127.15,0.05854605]
[1763804158130,7.0815,127.19,127.15,0.05854605]
[1763804158326,110.1552,127.19,127.15,0.05854605]
[1763804158634,7.0849,127.13,127.07,3.05]
[1763804158936,110.1717,127.17,127.07,3.05]
[1763804159328,110.1914,127.15,127.07,3.05]
[1763804159628,110.1501,127.2,127.08,3.05]
[1763804159834,7.0816,127.19,127.11,3.05]
[1763804160028,126.8219,127.21,127.11,3.05]
[1763804160239,16.68,127.21,127.11,3.05]
[1763804160534,119.23481134,127.25,127.13,3.05]
[1763804160835,119.23481134,127.25,127.18,0.0512834]
[1763804161241,110.0917,127.27,127.18,3.1012834]
[1763804161539,110.1027,127.25,127.21,0.06006382]
[1763804161742,7.0787,127.24,127.22,0.05770916]
[1763804161946,110.1027,127.25,127.22,0.05294032]
[1763804162233,117.1898,127.24,127.22,0.05294032]
[1763804162442,7.0788,127.24,127.22,0.05294032]
[1763804162640,117.19,127.24,127.22,0.05294032]
[1763804163141,110.1203,127.23,127.13,3.05]
[1763804163336,110.1296,127.22,127.13,3.05]
[1763804163938,0.05913478,127.19,127.16,0.05269275]
[1763804164144,0.05913478,127.19,127.16,3.10269275]
[1763804164447,7.0781,127.25,127.17,3.05]
[1763804165339,110.1053,127.25,127.2,0.05305689]
[1763804165536,110.1117,127.24,127.2,0.05305689]
[1763804165941,7.0799,127.22,127.2,0.05305689]
[1763804166245,110.0857,127.27,127.2,0.05305689]
[1763804166447,119.20851134,127.28,127.22,0.05004144]
[1763804167045,14.22240699,127.31,127.22,3.24004144]
[1763804167354,135.82051134,127.36,127.25,3.24560558]
[1763804167542,115.83148949,127.35,127.25,3.19]
[1763804167745,7.0732,127.34,127.29,3.25042198]
[1763804168150,16.68,127.36,127.29,3.25042198]
[1763804168455,117.0813,127.36,127.29,3.25042198]
[1763804168748,9.12651134,127.41,127.3,3.19]
[1763804168953,119.09191134,127.41,127.34,0.05916282]
[1763804169258,109.9435,127.44,127.34,3.24916282]
[1763804169453,119.05201134,127.46,127.38,0.05787459]
[1763804169648,126.15771833,127.51,127.39,3.19]
[1763804169849,119.01001134,127.51,127.41,3.19]
[1763804170143,7.0642,127.5,127.44,0.05263864]
[1763804170347,116.9521,127.5,127.44,0.05263864]
[1763804170544,135.70321134,127.54,127.44,0.05263864]
[1763804170749,135.70321134,127.54,127.44,3.19]
[1763804171051,109.8654,127.53,127.48,0.05171452]
[1763804171257,116.9283,127.53,127.48,0.05171452]
[1763804171552,118.97831134,127.54,127.48,0.05171452]
[1763804171856,109.8813,127.51,127.48,0.05171452]
[1763804172054,109.8982,127.49,127.41,3.19]
[1763804172448,109.9075,127.48,127.38,3.19]
[1763804172644,119.01781134,127.5,127.39,3.19]
[1763804172845,109.8988,127.49,127.39,3.19]
[1763804173048,0.05716813,127.45,127.43,0.05383962]
[1763804174558,0.05716813,127.45,127.43,3.24383962]
[1763804174753,0.05716813,127.45,127.43,0.05383962]
[1763804175362,0.05716813,127.45,127.43,3.24383962]
[1763804175561,0.05716813,127.45,127.43,0.05383962]
[1763804176161,0.05716813,127.45,127.43,3.24383962]
[1763804176848,0.05716813,127.45,127.43,0.05383962]
[1763804177958,0.05716813,127.45,127.32,110.0354]
[1763804177959,109.9419,127.44,127.35,3.19]
[1763804178357,109.967,127.41,127.32,3.19]
[1763804178556,109.9929,127.38,127.31,16.72]
[1763804178854,0.05073176,127.36,127.33,0.05388165]
[1763804179056,110.0461,127.32,127.25,3.19]
[1763804179255,110.0534,127.31,127.25,3.19]
[1763804179455,119.2554026,127.29,127.27,0.05805547]
[1763804179650,16.20271134,127.29,127.22,3.19]
[1763804179852,110.0327,127.34,127.22,3.19]
[1763804179853,9.12651134,127.32,127.22,3.19]
[1763804180056,7.071,127.38,127.27,3.23988967]
[1763804180255,117.0609,127.38,127.28,3.19]
[1763804180646,117.0624,127.38,127.28,3.19]
[1763804180854,117.0726,127.37,127.28,3.19]
[1763804181353,110.07972938,127.34,127.31,0.05744534]
[1763804181860,0.05262938,127.34,127.31,0.05744534]
[1763804182554,117.15062938,127.34,127.31,0.05744534]
[1763804182954,7.12602938,127.34,127.31,0.05744534]
[1763804183156,0.05262938,127.34,127.31,0.05744534]
[1763804183365,0.05262938,127.34,127.31,3.24744534]
[1763804183661,109.9828,127.39,127.31,3.24744534]
[1763804183855,109.9727,127.4,127.29,3.19]
[1763804184055,109.9856,127.39,127.3,3.19]
[1763804184361,117.0612,127.38,127.3,3.19]
[1763804184558,109.9901,127.38,127.33,0.0572979]
[1763804184760,119.11211134,127.39,127.33,0.0572979]
[1763804185060,109.9856,127.39,127.33,0.0572979]
[1763804186262,110.0072,127.36,127.33,0.0572979]
[1763804186456,110.0165,127.35,127.33,0.0572979]
[1763804186651,110.0318,127.34,127.26,3.19]
[1763804186856,133.8483,127.35,127.26,3.19]
[1763804187156,110.0502,127.31,127.22,19.95]
[1763804187359,7.0756,127.3,127.22,19.95]
[1763804187558,0.0572979,127.27,127.25,0.05320254]
[1763804189162,0.0572979,127.27,127.25,3.24320254]
[1763804189664,7.0744,127.32,127.25,3.24320254]
[1763804189860,9.12651134,127.36,127.27,3.19]
[1763804190063,135.87301134,127.39,127.29,3.19]
[1763804190359,16.76,127.39,127.29,3.19]
[1763804190550,16.76,127.39,127.33,0.05987929]
[1763804190749,25.88651134,127.42,127.33,3.24987929]
[1763804190950,9.12651134,127.42,127.36,0.06029744]
[1763804191365,119.08331134,127.42,127.36,0.06029744]
[1763804191565,7.0689,127.42,127.36,0.06029744]
[1763804191860,109.9729,127.4,127.36,0.06029744]
[1763804192054,117.0436,127.4,127.36,0.06029744]
[1763804192255,109.9736,127.4,127.36,0.06029744]
[1763804193163,109.9667,127.41,127.36,0.06029744]
[1763804193363,109.9733,127.4,127.36,0.06029744]
[1763804193561,109.9667,127.41,127.36,0.06029744]
[1763804193757,7.0705,127.39,127.36,0.06029744]
[1763804194158,109.9914,127.38,127.36,0.06029744]
[1763804194366,117.0626,127.38,127.36,0.06029744]
[1763804195960,23.8298,127.4,127.36,0.06029744]
[1763804196660,7.0705,127.39,127.36,0.06029744]
[1763804197658,7.0711,127.38,127.36,0.06029744]
[1763804199366,117.11440699,127.41,127.36,0.06029744]
[1763804199367,7.14770699,127.41,127.36,0.06029744]
[1763804199569,7.14770699,127.44,127.36,3.25029744]
[1763804199766,5.86073775,127.43,127.37,3.19]
[1763804199959,109.9213,127.46,127.39,0.05022645]
[1763804200164,132.54845122,127.45,127.39,0.05022645]
[1763804200468,5.85855122,127.44,127.39,3.24022645]
[1763804200661,142.94021833,127.48,127.4,0.05965828]
[1763804200864,121.87498813,127.47,127.43,0.05043092]
[1763804201064,5.86075189,127.46,127.43,0.05043092]
[1763804201372,109.9049,127.48,127.43,0.05043092]
[1763804201666,12.92820441,127.47,127.43,0.05043092]
[1763804201873,22.56258827,127.49,127.43,0.05043092]
[1763804202071,109.9213,127.46,127.43,0.05043092]
[1763804202277,122.82119323,127.45,127.43,0.05043092]
[1763804202460,5.82369323,127.44,127.36,3.19]
[1763804202660,22.56258827,127.46,127.36,3.19]
[1763804202959,12.89556701,127.45,127.36,3.19]
[1763804203162,5.82846701,127.44,127.38,3.19]
[1763804203369,0.05043092,127.42,127.41,3.19]
[1763804203662,5.83175155,127.47,127.41,3.19]
[1763804203868,5.83175155,127.46,127.41,3.19]
[1763804204069,7.0654,127.48,127.41,3.19]
[1763804204282,5.83083309,127.47,127.41,3.19]
[1763804204479,5.83083309,127.47,127.38,7.0704]
[1763804204480,5.83083309,127.46,127.43,0.06037012]
[1763804204769,115.76043309,127.45,127.43,0.06037012]
[1763804204980,5.83083309,127.44,127.43,0.06037012]
[1763804205275,5.83083309,127.44,127.35,16.78]
[1763804205276,121.55392136,127.44,127.35,16.78]
[1763804205571,5.83083309,127.43,127.35,19.97]
[1763804205770,5.83083309,127.42,127.35,19.97]
[1763804205973,5.83083309,127.41,127.36,3.19]
[1763804206275,122.87069526,127.44,127.36,3.19]
[1763804206477,0.0551272,127.41,127.39,0.06000152]
[1763804206669,0.0551272,127.41,127.39,3.25000152]
[1763804207071,0.0551272,127.41,127.39,0.06000152]
[1763804207471,0.0551272,127.41,127.39,3.25000152]
[1763804207668,19.99689526,127.46,127.39,3.25000152]
[1763804207873,5.84775582,127.45,127.39,3.25000152]
[1763804208069,5.84775582,127.44,127.39,3.25000152]
[1763804208378,109.9313,127.45,127.39,0.06000152]
[1763804208576,18.93776909,127.44,127.39,0.06000152]
[1763804208781,5.85344676,127.43,127.39,0.06000152]
[1763804208969,5.85344676,127.42,127.39,0.06000152]
[1763804209277,5.85344676,127.41,127.39,0.06000152]
[1763804209578,5.85344676,127.4,127.39,0.06000152]
[1763804209880,7.14770699,127.44,127.39,3.25000152]
[1763804210177,5.86110603,127.43,127.39,3.25000152]
[1763804210376,5.86110603,127.42,127.39,3.25000152]
[1763804210575,7.14770699,127.44,127.39,3.25000152]
[1763804210775,5.86612767,127.43,127.39,3.25000152]
[1763804210977,7.0665,127.46,127.4,3.19]
[1763804211275,5.86485444,127.45,127.42,0.05757391]
[1763804211578,5.86485444,127.44,127.42,0.05757391]
[1763804211780,7.0665,127.46,127.42,0.05757391]
[1763804211978,5.87187839,127.45,127.42,3.24757391]
[1763804212272,5.87187839,127.44,127.42,0.05757391]
[1763804212477,5.87187839,127.43,127.42,0.05757391]
[1763804213279,14.21430699,127.46,127.42,0.05757391]
[1763804213479,5.87837163,127.45,127.42,0.05757391]
[1763804213674,5.87837163,127.44,127.42,0.05757391]
[1763804213877,7.067,127.45,127.42,0.05757391]
[1763804214181,5.87837163,127.44,127.42,0.05757391]
[1763804214372,5.87837163,127.43,127.42,0.05757391]
[1763804215079,7.14770699,127.47,127.42,0.05757391]
[1763804215379,5.87867163,127.46,127.42,0.05757391]
[1763804215580,5.87867163,127.45,127.42,0.05757391]
[1763804215780,5.87867163,127.44,127.42,0.05757391]
[1763804215981,7.14770699,127.47,127.42,0.05757391]
[1763804216173,5.87847182,127.46,127.42,0.05757391]
[1763804216481,5.87847182,127.45,127.42,3.24757391]
[1763804216781,12.93029526,127.5,127.42,3.24757391]
[1763804217073,12.93029526,127.5,127.45,0.05227239]
[1763804217074,5.87874698,127.49,127.45,0.05227239]
[1763804217284,5.87874698,127.48,127.45,0.05227239]
[1763804217479,5.87874698,127.47,127.45,0.05227239]
[1763804217677,7.0649,127.49,127.45,0.05227239]
[1763804217880,5.87848925,127.48,127.45,0.05227239]
[1763804218083,7.0649,127.49,127.45,0.05227239]
[1763804218285,5.87704635,127.48,127.45,0.05227239]
[1763804218478,7.0661,127.47,127.38,3.19]
[1763804218684,5.87727311,127.46,127.38,3.19]
[1763804218875,7.14770699,127.48,127.38,3.19]
[1763804219081,5.87788434,127.47,127.38,3.19]
[1763804219280,5.87788434,127.46,127.38,3.19]
[1763804219581,14.21240699,127.49,127.42,3.19]
[1763804219888,5.87745195,127.48,127.42,3.19]
[1763804220085,5.87745195,127.47,127.42,3.19]
[1763804220383,7.0653,127.48,127.42,3.19]
[1763804220689,5.8771726,127.47,127.44,0.05562437]
[1763804220985,5.87764628,127.46,127.44,0.05562437]
[1763804221183,115.69508827,127.47,127.44,0.05562437]
[1763804221389,7.0687,127.42,127.39,16.78]
[1763804221691,109.9473,127.43,127.36,3.19]
[1763804221993,109.9823,127.39,127.29,3.19]
[1763804222281,11.66420011,127.38,127.29,3.19]
[1763804222489,0.04954576,127.35,127.32,0.05382464]
[1763804222780,110.06864576,127.35,127.32,0.05382464]
[1763804222982,0.04954576,127.35,127.32,0.05382464]
[1763804223184,110.0251,127.34,127.32,0.05382464]
[1763804223377,115.92175213,127.33,127.24,94.18]
[1763804223572,5.88439617,127.32,127.24,3.19]
[1763804223877,110.0553,127.31,127.2,3.19]
[1763804224076,5.78258827,127.32,127.22,3.19]
[1763804224279,5.88333623,127.31,127.22,3.19]
[1763804224489,0.05592032,127.28,127.26,0.05929933]
[1763804225378,0.05592032,127.28,127.26,3.24929933]
[1763804225682,0.05592032,127.28,127.26,0.05929933]
[1763804226276,110.13282032,127.28,127.26,0.05929933]
[1763804226478,117.1723,127.26,127.19,3.2]
[1763804226782,115.85948827,127.28,127.19,3.2]
[1763804227080,5.78258827,127.32,127.23,3.2]
[1763804227286,5.78258827,127.32,127.24,3.2]
[1763804227585,0.05901229,127.29,127.27,0.0530087]
[1763804227787,0.05901229,127.29,127.27,3.2530087]
[1763804228085,5.78258827,127.35,127.27,3.2530087]
[1763804228287,5.78258827,127.35,127.27,10.2765]
[1763804228487,110.0246,127.34,127.24,3.2]
[1763804228880,117.0979,127.34,127.24,10.2782]
[1763804229180,0.05491514,127.3,127.28,0.05073254]
[1763804229681,0.05491514,127.3,127.28,3.25073254]
[1763804229986,0.05491514,127.3,127.28,0.05073254]
[1763804230374,0.05491514,127.3,127.28,3.25073254]
[1763804230976,0.05491514,127.3,127.28,0.05073254]
[1763804235688,0.05491514,127.3,127.28,3.25073254]
[1763804235892,0.05491514,127.3,127.28,0.05073254]
[1763804236189,7.13031514,127.3,127.24,3.2]
[1763804236386,7.13031514,127.3,127.23,16.8]
[1763804236387,5.83750341,127.3,127.23,16.8]
[1763804236578,110.1112,127.24,127.17,3.2]
[1763804236779,110.1498,127.2,127.14,3.2]
[1763804236982,110.1498,127.2,127.09,127.0746]
[1763804236983,110.1745,127.17,127.1,3.2]
[1763804237191,110.1801,127.16,127.1,3.2]
[1763804237490,0.05776096,127.15,127.12,0.05350159]
[1763804237693,0.05776096,127.15,127.12,3.25350159]
[1763804237984,12.86348827,127.2,127.12,3.25350159]
[1763804238190,12.86348827,127.2,127.12,113.4145]
[1763804238390,5.78258827,127.2,127.13,3.2]
[1763804238693,5.78258827,127.2,127.13,10.2843]
[1763804239087,0.05327918,127.18,127.15,0.05384891]
[1763804240091,0.05327918,127.18,127.15,3.25384891]
[1763804241592,0.05327918,127.18,127.15,0.05384891]
[1763804242793,0.05327918,127.18,127.15,3.25384891]